bitfinex-derivatives/quotes_ETHF0:USTF0_20250520
["timestamp","ask_amount","ask_price","bid_price","bid_amount"]
[1747759261496,2.74,2480.2,2480.1,1.72042717]
[1747759262090,4.01388,2480.4,2480.3,0.80611]
[1747759262691,4.01388,2480.4,2480.3,1.46411]
[1747759263899,4.01388,2480.4,2480.3,0.658]
[1747759264101,4.01388,2480.4,2480.2,2.13494]
[1747759264102,0.80611,2480.3,2480.2,1.3288]
[1747759264305,0.80614,2480.2,2480.1,1.50068]
[1747759264494,0.80618,2480.1,2480.0,0.21974717]
[1747759264797,11.00998,2480.1,2480.0,0.21974717]
[1747759265104,15.76607,2480.1,2480.0,0.21974717]
[1747759265993,16.44357,2480.1,2480.0,0.21974717]
[1747759266812,0.80621,2480.0,2479.9,0.00604583]
[1747759266995,2.14001,2480.0,2479.9,0.00604583]
[1747759267301,6.89618,2480.0,2479.9,0.00604583]
[1747759268098,4.15618,2480.0,2479.9,0.00604583]
[1747759268997,3.8853,2480.1,2480.0,0.80621]
[1747759269202,0.00604583,2480.3,2480.2,0.80614]
[1747759269400,3.21384583,2480.3,2480.2,0.80614]
[1747759269595,0.00604583,2480.3,2480.2,2.15794]
[1747759272096,0.00604583,2480.3,2480.2,10.45294]
[1747759272695,0.81215583,2480.3,2480.2,10.45294]
[1747759272899,2.10215583,2480.3,2480.2,10.45294]
[1747759273095,1.29604583,2480.3,2480.2,10.45294]
[1747759273295,0.00604583,2480.3,2480.2,10.45294]
[1747759273913,0.00604583,2480.3,2480.2,10.45194]
[1747759275799,3.2078,2481.1,2480.2,14.6468]
[1747759276001,2.6486,2481.0,2480.9,0.80588]
[1747759276206,4.01367,2481.1,2481.0,0.80588]
[1747759276508,0.80592,2481.0,2480.9,0.80588]
[1747759276704,0.80592,2481.0,2480.9,2.21408]
[1747759276910,2.821275,2481.0,2480.9,2.21408]
[1747759278422,0.80598,2480.8,2480.7,0.80595]
[1747759278621,4.01378,2480.8,2480.7,0.80595]
[1747759278919,0.80598,2480.7,2480.6,10.3478]
[1747759279121,2.20958,2480.7,2480.6,10.3478]
[1747759279323,4.86228,2480.7,2480.6,9.10101]
[1747759280015,4.86228,2480.7,2480.6,10.48521]
[1747759280016,4.0563,2480.7,2480.6,10.48521]
[1747759280213,2.82158,2480.7,2480.6,10.48521]
[1747759280617,2.0156,2480.7,2480.6,10.48521]
[1747759280921,4.01376,2480.8,2480.7,0.80598]
[1747759281322,6.02928,2480.8,2480.7,0.80598]
[1747759281822,0.80598,2480.7,2480.6,8.295]
[1747759282021,2.75468,2480.7,2480.6,9.10101]
[1747759282217,2.75468,2480.7,2480.6,8.295]
[1747759282218,4.77028,2480.7,2480.6,8.295]
[1747759282627,0.80601,2480.6,2480.5,1.3842]
[1747759282816,0.80608,2480.4,2480.3,8.51474717]
[1747759283125,4.01388,2480.4,2480.3,0.21974717]
[1747759283312,6.029725,2480.4,2480.3,0.21974717]
[1747759283924,0.80611,2480.3,2480.2,0.80614]
[1747759284225,3.45121,2480.3,2480.2,0.80614]
[1747759284626,5.467135,2480.3,2480.2,0.80614]
[1747759284824,3.45121,2480.3,2480.2,0.80614]
[1747759286127,3.2078,2480.4,2480.3,0.80611]
[1747759286527,5.223645,2480.4,2480.3,0.80611]
[1747759286725,3.2078,2480.4,2480.3,0.80611]
[1747759286934,5.885,2480.7,2480.6,0.80601]
[1747759287128,3.2078,2480.7,2480.6,0.80601]
[1747759287324,0.80597,2480.8,2480.7,0.80598]
[1747759287629,2.82149,2480.8,2480.7,0.80598]
[1747759288930,4.01371,2481.0,2480.7,0.80598]
[1747759289128,4.01371,2481.0,2480.9,0.80592]
[1747759289627,6.029065,2481.0,2480.9,0.80592]
[1747759290435,5.223155,2481.0,2480.9,0.80592]
[1747759290634,5.223155,2481.0,2480.9,1.50682]
[1747759290834,6.029035,2481.0,2480.9,1.50682]
[1747759291736,6.029035,2481.0,2480.9,1.82922733]
[1747759292034,5.223155,2481.0,2480.9,1.82922733]
[1747759292236,3.2078,2481.0,2480.9,1.82922733]
[1747759292439,0.00604583,2481.2,2481.1,0.80585]
[1747759292736,0.00604583,2481.2,2481.1,9.08585]
[1747759293125,0.00604583,2481.2,2481.1,9.74365]
[1747759293328,0.80585,2481.1,2481.0,9.5738]
[1747759293531,2.12395,2481.1,2481.0,10.59942717]
[1747759294038,1.3181,2481.1,2481.0,10.59942717]
[1747759294336,0.81188583,2481.2,2481.1,0.80585]
[1747759294536,2.82712083,2481.2,2481.1,0.80585]
[1747759295730,0.81188583,2481.2,2481.1,0.80585]
[1747759296126,2.82708083,2481.2,2481.1,0.80585]
[1747759296330,0.80585,2481.1,2481.0,10.37867]
[1747759297037,0.81188583,2481.2,2481.1,0.80585]
[1747759297237,2.82712083,2481.2,2481.1,0.80585]
[1747759298940,2.82712083,2481.2,2481.1,1.12823414]
[1747759300332,0.80588,2481.1,2481.0,0.80585]
[1747759300829,2.821155,2481.1,2481.0,0.80585]
[1747759301341,2.015275,2481.1,2481.0,0.80585]
[1747759301544,0.81188583,2481.2,2481.1,0.80585]
[1747759302043,2.82708083,2481.2,2481.1,0.80585]
[1747759303146,2.82708083,2481.2,2481.1,0.32239199]
[1747759304249,10.56708083,2481.2,2481.1,0.32239199]
[1747759304542,0.80592,2480.9,2480.8,0.21974717]
[1747759304745,3.2078,2480.9,2480.7,0.80598]
[1747759304946,5.22328,2480.9,2480.8,0.80595]
[1747759305151,3.2078,2480.9,2480.8,0.80595]
[1747759305447,2.08898,2481.0,2480.9,0.80592]
[1747759305647,0.80588,2481.0,2480.9,0.80592]
[1747759305844,2.015355,2481.0,2480.9,0.80592]
[1747759306038,3.2078,2481.1,2481.0,0.80588]
[1747759306242,4.01365,2481.1,2481.0,0.80588]
[1747759306449,6.028925,2481.1,2481.0,0.80588]
[1747759306657,6.028925,2481.1,2481.0,2.09008]
[1747759306950,4.01365,2481.1,2481.0,2.09008]
[1747759307650,3.2078,2481.1,2481.0,2.41249801]
[1747759307951,4.01365,2481.1,2481.0,2.41249801]
[1747759309250,3.2078,2481.1,2481.0,2.41249801]
[1747759310355,3.2078,2481.1,2481.0,10.69149801]
[1747759313448,3.2078,2481.1,2481.0,10.91124518]
[1747759313854,0.00604583,2481.2,2481.1,0.80585]
[1747759314652,0.00604583,2481.2,2481.1,1.34801518]
[1747759315050,0.00604583,2481.2,2481.1,4.55581518]
[1747759315257,0.00604583,2481.2,2481.1,9.55581518]
[1747759316253,0.00604583,2481.2,2481.1,9.33606801]
[1747759319370,0.00604583,2481.2,2481.1,9.92270537]
[1747759320252,4.5289,2481.8,2481.7,0.80566]
[1747759320654,6.543605,2481.8,2481.7,0.80566]
[1747759320954,3.2078,2481.8,2481.7,0.80566]
[1747759321157,1.0002395,2482.0,2481.9,0.80559]
[1747759321158,1.00628533,2482.0,2481.9,0.80559]
[1747759321660,0.03132533,2482.0,2481.9,0.80559]
[1747759322356,0.00604583,2482.0,2481.9,3.86800801]
[1747759322759,0.81160583,2482.0,2481.9,13.50470801]
[1747759323062,0.00604583,2482.0,2481.9,13.50470801]
[1747759323354,0.00604583,2482.0,2481.9,10.76470801]
[1747759323954,0.00604583,2482.0,2481.9,10.98499384]
[1747759324760,1.32354583,2482.0,2481.9,10.98499384]
[1747759325653,1.32354583,2482.0,2481.9,10.76470801]
[1747759326159,1.32354583,2482.0,2481.9,10.76370801]
[1747759326360,0.00604583,2482.0,2481.9,10.76370801]
[1747759327262,0.00604583,2482.0,2481.9,13.50370801]
[1747759329163,0.00604583,2482.0,2481.9,10.76370801]
[1747759330268,0.00604583,2482.0,2481.9,13.50370801]
[1747759330459,0.6467,2482.4,2482.3,0.80546]
[1747759330655,0.6467,2482.4,2482.3,9.06446]
[1747759331465,3.2078,2483.1,2482.3,11.66122]
[1747759331666,1.3264,2482.8,2482.6,0.80537]
[1747759331865,0.657,2482.9,2482.5,2.01346]
[1747759332070,0.657,2482.9,2482.8,0.8053]
[1747759332262,0.657,2482.9,2482.8,9.0643]
[1747759332863,1.9834,2482.9,2482.8,9.0643]
[1747759333270,0.80533,2482.8,2482.7,0.8053]
[1747759333483,2.13173,2482.8,2482.7,9.0643]
[1747759333863,3.340295,2482.8,2482.7,9.0643]
[1747759334160,1.3264,2482.8,2482.7,9.0643]
[1747759334964,2.1317,2482.8,2482.7,9.0643]
[1747759335163,3.340295,2482.8,2482.6,1.4023]
[1747759335374,1.3264,2482.8,2482.7,8.258]
[1747759335766,3.340295,2482.8,2482.7,8.258]
[1747759335966,4.145625,2482.8,2482.7,9.06333]
[1747759338470,0.80533,2482.7,2482.6,1.12749787]
[1747759338671,2.10503,2482.7,2482.6,9.38549787]
[1747759338870,4.119005,2482.7,2482.6,9.38549787]
[1747759339368,4.119005,2482.7,2482.6,0.32215787]
[1747759339766,9.119005,2482.7,2482.6,0.32215787]
[1747759339966,9.119005,2482.7,2482.3,8.257]
[1747759339967,10.327055,2482.7,2482.3,8.257]
[1747759340168,0.80546,2482.3,2482.2,0.21977632]
[1747759340466,0.80546,2482.3,2482.2,8.47677632]
[1747759340670,4.75706,2482.3,2482.2,0.21977632]
[1747759341067,7.49706,2482.3,2482.2,0.21977632]
[1747759341263,7.49706,2482.3,2482.2,0.32223729]
[1747759342370,12.49706,2482.3,2482.2,0.32223729]
[1747759342571,0.80556,2482.0,2481.9,0.21977632]
[1747759342769,2.01401,2481.9,2481.7,8.258]
[1747759342970,0.6624,2481.8,2481.7,8.258]
[1747759343168,2.74293,2481.8,2481.7,8.258]
[1747759343370,4.757635,2481.8,2481.7,8.258]
[1747759343665,0.80566,2481.7,2481.6,8.258]
[1747759343868,2.20706,2481.7,2481.6,8.258]
[1747759344064,7.42965,2481.7,2481.6,8.258]
[1747759344376,7.42965,2481.7,2481.6,9.06369]
[1747759344980,7.42965,2481.7,2481.6,8.258]
[1747759345576,7.42965,2481.7,2481.6,9.06369]
[1747759345976,7.42965,2481.7,2481.6,8.258]
[1747759346579,7.42965,2481.7,2481.6,9.06369]
[1747759346780,7.42965,2481.7,2481.6,8.258]
[1747759348078,0.80569,2481.6,2481.5,0.00604583]
[1747759348482,4.20436,2481.6,2481.5,0.00604583]
[1747759349185,6.94436,2481.6,2481.5,0.00604583]
[1747759349978,12.63996,2481.6,2481.5,0.00604583]
[1747759351481,7.63996,2481.6,2481.5,0.00604583]
[1747759353084,4.92949,2481.6,2481.5,0.00604583]
[1747759353384,0.80569,2481.6,2481.5,0.81176583]
[1747759353774,0.80569,2481.6,2481.5,2.14766583]
[1747759355082,4.01348,2481.7,2481.6,0.80569]
[1747759355482,3.2078,2481.7,2481.6,0.80569]
[1747759356183,0.80557,2482.0,2481.9,0.80559]
[1747759356384,0.80557,2482.0,2481.9,9.04859]
[1747759356980,2.820115,2482.0,2481.9,9.04859]
[1747759357181,2.820115,2482.0,2481.9,9.5216]
[1747759357381,4.126415,2482.0,2481.9,9.5216]
[1747759358074,4.126415,2482.0,2481.9,10.32719]
[1747759359488,4.01331,2482.2,2482.1,0.80553]
[1747759359980,6.027695,2482.2,2482.1,0.80553]
[1747759360188,6.027695,2482.2,2482.1,2.11053]
[1747759361190,5.222185,2482.2,2482.1,2.11053]
[1747759361384,3.2078,2482.2,2482.1,2.11053]
[1747759361581,0.66766386,2482.7,2482.6,0.80537]
[1747759361888,0.66766386,2482.7,2482.6,9.04737]
[1747759362491,2.68163886,2482.7,2482.6,9.04737]
[1747759362786,0.66766386,2482.7,2482.6,10.07202531]
[1747759363083,0.66766386,2482.7,2482.6,10.07102531]
[1747759363280,0.66766386,2482.7,2482.6,10.07002531]
[1747759363781,0.66766386,2482.7,2482.6,10.06902531]
[1747759363983,0.66766386,2482.7,2482.6,10.06802531]
[1747759364189,4.01301,2483.1,2483.0,0.80524]
[1747759364394,6.026825,2483.1,2483.0,0.80424]
[1747759364692,6.026825,2483.1,2483.0,0.80324]
[1747759364892,3.2078,2483.1,2483.0,9.04424]
[1747759365091,4.013,2483.1,2483.0,9.04324]
[1747759365290,4.013,2483.1,2483.0,9.74074]
[1747759365491,0.66766386,2483.3,2483.2,0.80517]
[1747759365793,0.66766386,2483.3,2483.2,0.80417]
[1747759366098,0.66766386,2483.3,2483.2,0.80317]
[1747759366492,0.66766386,2483.3,2483.2,0.80217]
[1747759366691,2.68115386,2483.3,2483.2,1.12432531]
[1747759366989,0.66766386,2483.3,2483.2,1.12332531]
[1747759367194,0.66766386,2483.3,2483.2,1.12232531]
[1747759367590,2.68115386,2483.3,2483.2,1.12132531]
[1747759367792,2.68115386,2483.3,2483.2,1.12032531]
[1747759368089,2.01349,2483.3,2483.2,1.11832531]
[1747759368295,2.81863,2483.3,2483.2,0.32115531]
[1747759368497,4.22513,2483.3,2483.2,0.32015531]
[1747759368692,4.22513,2483.3,2483.2,0.31915531]
[1747759368996,4.22513,2483.3,2483.2,0.31715531]
[1747759369197,4.22513,2483.3,2483.2,0.31615531]
[1747759369399,2.81863,2483.3,2483.2,1.12032531]
[1747759369599,0.80514,2483.3,2483.2,1.11932531]
[1747759369794,0.80514,2483.3,2483.2,1.75532531]
[1747759370099,3.2078,2483.4,2483.3,0.80314]
[1747759370296,5.22121,2483.4,2483.3,2.11704]
[1747759370597,5.22121,2483.4,2483.3,2.11604]
[1747759370798,5.22121,2483.4,2483.3,2.11404]
[1747759371001,2.01341,2483.4,2483.3,2.11304]
[1747759371199,2.01341,2483.4,2483.3,4.85204]
[1747759371395,2.01341,2483.4,2483.3,4.85104]
[1747759371702,2.01341,2483.4,2483.3,4.84904]
[1747759371996,3.2078,2483.7,2483.6,0.80504]
[1747759372200,4.01282,2483.7,2483.6,9.04404]
[1747759372399,6.025985,2483.7,2483.6,9.04204]
[1747759372593,5.41132,2483.7,2483.6,9.04104]
[1747759372896,6.619465,2483.7,2483.6,9.03904]
[1747759373092,3.2078,2483.7,2483.6,9.03804]
[1747759373295,3.2078,2483.7,2483.6,9.03604]
[1747759373596,3.2078,2483.7,2483.6,9.03504]
[1747759373902,3.2078,2483.7,2483.6,9.67654]
[1747759374091,3.2078,2483.7,2483.6,9.67554]
[1747759374291,3.2078,2483.7,2483.6,9.67454]
[1747759374292,4.01281,2483.7,2483.6,9.67454]
[1747759374507,4.01281,2483.7,2483.6,9.67354]
[1747759374697,4.01281,2483.7,2483.6,9.67254]
[1747759375004,4.01281,2483.7,2483.6,9.67054]
[1747759375299,4.01281,2483.7,2483.6,9.66954]
[1747759375494,5.31971,2483.7,2483.6,9.66854]
[1747759375802,5.31971,2483.7,2483.6,9.66654]
[1747759376004,5.31971,2483.7,2483.6,9.66554]
[1747759376202,4.5147,2483.7,2483.6,9.66454]
[1747759376501,5.31971,2483.7,2483.6,9.66254]
[1747759376700,4.5147,2483.7,2483.6,9.66154]
[1747759376893,5.31971,2483.7,2483.6,9.66054]
[1747759377205,4.5147,2483.7,2483.6,9.65954]
[1747759377501,4.5147,2483.7,2483.6,9.65754]
[1747759377801,4.5147,2483.7,2483.6,9.65554]
[1747759378001,4.5147,2483.7,2483.6,9.65454]
[1747759378190,5.31971,2483.7,2483.6,9.65354]
[1747759378390,5.31971,2483.7,2483.6,9.65254]
[1747759378600,3.2078,2483.7,2483.6,9.65154]
[1747759378798,3.2078,2483.7,2483.6,9.65054]
[1747759379005,3.2078,2483.7,2483.6,9.64954]
[1747759379302,3.2078,2483.7,2483.6,9.64754]
[1747759379499,3.2078,2483.7,2483.6,9.64654]
[1747759379700,3.2078,2483.7,2483.6,9.64554]
[1747759379902,5.39921,2484.0,2483.9,0.80494]
[1747759380101,5.220725,2484.0,2483.9,0.80394]
[1747759380302,3.2078,2484.0,2483.9,0.80294]
[1747759380497,3.2078,2484.0,2483.9,0.80194]
[1747759380698,3.2078,2484.0,2483.9,0.80094]
[1747759380894,3.2078,2484.0,2483.9,0.79994]
[1747759381098,3.2078,2484.0,2483.9,0.79894]
[1747759381298,3.2078,2484.0,2483.9,0.79794]
[1747759381504,3.2078,2484.0,2483.9,0.79594]
[1747759381906,3.2078,2484.0,2483.9,0.79394]
[1747759382107,3.2078,2484.0,2483.9,0.79294]
[1747759382304,3.29266477,2484.0,2483.9,0.79194]
[1747759382503,3.29266477,2484.0,2483.9,0.79094]
[1747759382706,3.29266477,2484.0,2483.9,0.78994]
[1747759382903,4.09757477,2484.0,2483.9,0.78894]
[1747759383105,3.29266477,2484.0,2483.9,0.78794]
[1747759383408,3.2078,2484.0,2483.9,0.78694]
[1747759383603,3.2078,2484.0,2483.9,0.78594]
[1747759383804,3.2078,2484.0,2483.9,0.78494]
[1747759384104,3.2078,2484.0,2483.9,9.00294]
[1747759384411,3.2078,2484.0,2483.9,9.00094]
[1747759384710,3.2078,2484.0,2483.9,8.99994]
[1747759385005,3.2078,2484.0,2483.9,8.99794]
[1747759385209,0.80498,2483.8,2483.7,0.32199007]
[1747759385404,0.80498,2483.8,2483.7,8.54099007]
[1747759385607,0.80504,2483.6,2483.5,0.21977632]
[1747759385906,0.80504,2483.6,2483.5,0.21777632]
[1747759386101,5.558285,2483.6,2483.5,0.21777632]
[1747759386298,6.864585,2483.6,2483.5,0.21777632]
[1747759386500,0.80507,2483.5,2483.4,8.22]
[1747759386705,2.11137,2483.5,2483.4,8.22]
[1747759386901,0.80517,2483.2,2483.1,40.87779428]
[1747759387115,3.2078,2483.2,2483.1,9.31899428]
[1747759387410,6.02654,2483.2,2483.1,9.31899428]
[1747759387600,5.86947,2483.2,2483.1,9.31899428]
[1747759387802,7.17577,2483.2,2483.1,9.31899428]
[1747759388113,3.2078,2483.2,2483.1,9.0252]
[1747759388413,3.2078,2483.5,2483.4,0.80407]
[1747759388709,4.01287,2483.5,2483.4,0.80207]
[1747759388909,6.0262,2483.5,2483.4,0.80107]
[1747759389106,0.80514,2483.4,2483.3,0.80512]
[1747759389409,1.4058,2483.4,2483.3,2.09582]
[1747759389712,2.21091,2483.4,2483.3,2.09382]
[1747759389911,2.21091,2483.4,2483.3,2.09282]
[1747759390111,2.21091,2483.4,2483.3,2.09182]
[1747759390315,2.21091,2483.4,2483.3,2.09082]
[1747759390509,1.4058,2483.4,2483.0,0.6629]
[1747759390710,0.80527,2482.9,2482.8,0.00504583]
[1747759391216,2.819085,2482.9,2482.8,0.81034583]
[1747759391713,3.456185,2482.9,2482.8,0.81034583]
[1747759391906,3.456185,2482.9,2482.8,0.00504583]
[1747759392306,3.456185,2482.9,2482.8,0.81034583]
[1747759392503,3.456185,2482.9,2482.8,0.00504583]
[1747759393910,3.456185,2482.9,2482.8,0.81034583]
[1747759395015,3.456185,2482.9,2482.8,0.00504583]
[1747759395911,3.456185,2482.9,2482.7,0.80533]
[1747759395912,0.80533,2482.7,2482.6,9.02535]
[1747759396111,0.80533,2482.7,2482.6,8.22]
[1747759396515,2.09703,2482.7,2482.6,8.22]
[1747759396707,2.09703,2482.7,2482.6,9.02537]
[1747759397315,3.8461,2482.8,2482.7,0.80533]
[1747759397517,3.8461,2482.8,2482.7,2.17063]
[1747759398010,3.8461,2482.8,2482.7,2.83093]
[1747759398210,3.8461,2482.8,2482.7,2.82743]
[1747759398811,8.019695,2482.8,2482.7,0.32215073]
[1747759399018,8.019695,2482.8,2482.7,8.54415073]
[1747759399412,7.214395,2482.8,2482.7,9.34948073]
[1747759399607,5.2005,2482.8,2482.7,9.34948073]
[1747759399915,8.019695,2482.8,2482.7,9.34948073]
[1747759402611,8.019695,2482.8,2482.7,8.54415073]
[1747759403319,8.019695,2482.8,2482.7,9.34948073]
[1747759403520,8.019695,2482.8,2482.7,8.54415073]
[1747759403721,0.8054,2482.5,2482.4,0.00604583]
[1747759403912,4.0132,2482.5,2482.4,0.00604583]
[1747759404117,0.8055,2482.2,2482.1,0.44081512]
[1747759404423,4.0133,2482.2,2482.1,0.44081512]
[1747759404617,11.027685,2482.2,2482.1,0.44081512]
[1747759404917,6.027685,2482.2,2482.1,0.44081512]
[1747759405114,5.222185,2482.2,2482.1,0.80553]
[1747759405318,6.027685,2482.2,2482.1,0.80553]
[1747759405518,7.403285,2482.2,2482.1,0.80553]
[1747759406218,0.80553,2482.1,2482.0,9.02755]
[1747759406521,2.18113,2482.1,2482.0,9.02755]
[1747759406721,1.3756,2482.1,2482.0,9.02755]
[1747759407122,2.18113,2482.1,2482.0,9.02755]
[1747759407716,1.3756,2482.1,2482.0,9.02755]
[1747759408822,2.18113,2482.1,2482.0,9.02755]
[1747759409023,4.195595,2482.1,2482.0,8.222]
[1747759409226,4.195595,2482.1,2482.0,9.02756]
[1747759409419,4.195595,2482.1,2482.0,10.31116]
[1747759410725,4.195595,2482.1,2482.0,9.02756]
[1747759411724,3.2078,2482.2,2482.1,0.80553]
[1747759411923,4.0133,2482.2,2482.1,2.21233]
[1747759412325,0.80553,2482.1,2482.0,9.02753]
[1747759412623,2.13793,2482.1,2482.0,9.02753]
[1747759413336,2.13793,2482.1,2482.0,8.222]
[1747759413917,4.01331,2482.2,2482.1,0.80553]
[1747759414320,5.222185,2482.2,2482.0,9.5245]
[1747759414527,0.80553,2482.1,2482.0,9.5245]
[1747759414726,2.11783,2482.1,2482.0,9.5245]
[1747759414922,0.80556,2482.0,2481.9,0.00604583]
[1747759415131,13.71926,2482.0,2481.9,5.83e-06]
[1747759415329,20.733805,2482.0,2481.9,5.83e-06]
[1747759418228,0.80592,2480.9,2480.8,9.65793]
[1747759418427,0.8059,2481.0,2480.9,0.80588]
[1747759418834,2.1707,2481.0,2480.9,0.80588]
[1747759419129,4.186055,2481.0,2480.9,0.80588]
[1747759419536,4.186055,2481.0,2480.9,1.12826555]
[1747759420037,4.186055,2481.0,2480.9,0.32238555]
[1747759421235,0.80595,2480.8,2480.7,0.00604583]
[1747759421438,4.01375,2480.8,2480.7,0.00604583]
[1747759421639,6.02927,2480.8,2480.7,0.00604583]
[1747759422241,8.76927,2480.8,2480.7,0.00604583]
[1747759422635,8.76927,2480.8,2480.0,3.69707424]
[1747759422636,21.17332,2480.8,2479.7,0.96865424]
[1747759422842,0.80624,2479.9,2479.8,9.5132]
[1747759423340,2.82249001,2479.9,2479.8,9.5132]
[1747759423550,0.80627,2479.8,2479.7,0.29335424]
[1747759423736,5.37707,2479.8,2479.7,0.29335424]
[1747759423936,6.58713,2479.8,2479.7,1.09966424]
[1747759424139,3.2078,2480.1,2479.8,0.80627]
[1747759424340,0.80621,2480.0,2479.9,1.3032]
[1747759424535,0.80627,2479.8,2479.7,9.01729]
[1747759424734,0.80631,2479.7,2479.6,2.10952]
[1747759424936,2.16931,2479.7,2479.6,2.10952]
[1747759425443,3.2078,2479.8,2479.7,0.80631]
[1747759425639,5.224175,2479.8,2479.7,0.80631]
[1747759425842,5.22413,2479.8,2479.7,0.80631]
[1747759426437,2.01633,2479.8,2479.7,0.80631]
[1747759426644,6.52483,2479.8,2479.6,2.10953]
[1747759426843,0.80631,2479.7,2479.6,2.10953]
[1747759427044,2.10701,2479.7,2479.6,2.10953]
[1747759427237,2.10701,2479.7,2479.6,1.3032]
[1747759427849,2.10701,2479.7,2479.6,2.10954]
[1747759428039,3.2078,2479.8,2479.7,0.80631]
[1747759428238,3.2078,2479.8,2479.7,2.12321]
[1747759430534,4.01407,2479.8,2479.7,1.3169]
[1747759430745,4.01407,2479.8,2479.7,2.12321]
[1747759431055,6.0304,2479.8,2479.7,2.12321]
[1747759431439,5.22413,2479.8,2479.7,2.12321]
[1747759431940,3.2078,2479.8,2479.7,2.12321]
[1747759432746,5.22413,2479.8,2479.7,2.12321]
[1747759432949,6.0304,2479.8,2479.7,2.12321]
[1747759434052,0.80631,2479.7,2479.6,0.80632]
[1747759434255,0.80634,2479.6,2479.5,1.33164583]
[1747759434645,2.822835,2479.6,2479.5,1.33164583]
[1747759434844,4.154335,2479.6,2479.5,1.33164583]
[1747759435046,4.154335,2479.6,2479.5,2.13801583]
[1747759435552,4.154335,2479.6,2479.5,1.33164583]
[1747759435752,4.154335,2479.6,2479.5,0.00604583]
[1747759436252,11.894335,2479.6,2479.5,0.00604583]
[1747759437144,12.540035,2479.6,2479.5,5.83e-06]
[1747759437547,7.540035,2479.6,2479.5,5.83e-06]
[1747759437845,12.540035,2479.6,2479.5,5.83e-06]
[1747759438450,9.800035,2479.6,2479.5,5.83e-06]
[1747759439156,12.540035,2479.6,2479.5,5.83e-06]
[1747759440855,0.80663,2478.7,2478.6,2.19664]
[1747759441052,4.01443,2478.7,2478.6,1.39]
[1747759441355,6.031655,2478.7,2478.6,1.39]
[1747759441753,6.031655,2478.7,2478.5,3.5467]
[1747759441754,0.80666,2478.6,2478.5,3.5467]
[1747759442150,0.80666,2478.6,2478.5,4.9191]
[1747759442345,2.82397,2478.6,2478.5,4.9191]
[1747759442547,0.80666,2478.6,2478.5,4.9191]
[1747759442955,2.82397,2478.6,2478.5,4.9191]
[1747759443157,2.82397,2478.6,2478.5,2.1791]
[1747759444050,2.82397,2478.6,2478.5,1.3724]
[1747759444245,0.80673,2478.4,2478.3,8.22304583]
[1747759444557,4.01453,2478.4,2478.3,8.22304583]
[1747759445353,3.2078,2478.4,2478.3,9.02980583]
[1747759446255,3.2078,2478.4,2478.3,11.76980583]
[1747759446657,4.01453,2478.4,2478.3,10.96304583]
[1747759447160,3.2078,2478.4,2478.3,11.76980583]
[1747759447348,0.00604583,2478.6,2478.3,9.1146706]
[1747759447554,0.00604583,2478.6,2478.5,0.8067]
[1747759447749,0.6766,2479.3,2479.2,0.80647]
[1747759447945,2.0939,2479.5,2479.4,0.8064]
[1747759448144,0.80645,2479.4,2479.3,0.80642]
[1747759448348,0.80647,2479.3,2479.2,0.80645]
[1747759448555,4.01422,2479.4,2479.3,0.80644]
[1747759448856,6.03088,2479.4,2479.3,0.80644]
[1747759450054,3.2078,2479.4,2479.3,0.80644]
[1747759450258,4.0142,2479.4,2479.3,0.80644]
[1747759450558,3.2078,2479.4,2479.3,0.80644]
[1747759451053,4.0142,2479.4,2479.3,0.80644]
[1747759451760,0.80644,2479.3,2479.2,2.13524]
[1747759452457,0.80644,2479.3,2479.2,2.45796427]
[1747759452657,3.2078,2479.4,2479.3,0.80644]
[1747759452857,3.2078,2479.4,2479.3,2.13524]
[1747759453253,3.2078,2479.4,2479.3,10.34024]
[1747759454261,3.2078,2479.4,2479.3,13.40296427]
[1747759454858,0.00604583,2479.6,2479.5,0.80637]
[1747759455163,0.00604583,2479.6,2479.5,3.54637]
[1747759456060,0.00604583,2479.6,2479.5,3.86909427]
[1747759456259,2.02254083,2479.6,2479.5,3.86909427]
[1747759456459,2.82888083,2479.6,2479.5,3.06272427]
[1747759456660,4.17908083,2479.6,2479.5,3.06272427]
[1747759457158,4.17908083,2479.6,2479.5,0.32272427]
[1747759457353,0.8064,2479.4,2479.3,1.3288]
[1747759457557,0.80644,2479.3,2479.2,8.205]
[1747759457762,0.80647,2479.2,2479.1,1.54899017]
[1747759458063,0.80647,2479.2,2479.1,0.21949017]
[1747759458357,3.50129,2479.2,2479.1,0.21949017]
[1747759458561,4.85149,2479.2,2479.1,0.21949017]
[1747759459264,0.80657,2478.9,2478.8,0.80658]
[1747759459463,4.01437,2478.9,2478.8,2.10778]
[1747759459763,6.031435,2478.9,2478.8,2.10778]
[1747759460662,6.031435,2478.9,2478.8,2.43046111]
[1747759460860,3.2078,2478.9,2478.8,2.43046111]
[1747759461264,0.80649,2479.2,2479.1,0.8065]
[1747759461763,2.82331,2479.2,2479.1,0.8065]
[1747759462760,4.5598,2479.3,2479.2,0.80647]
[1747759462761,5.36626,2479.3,2479.2,0.80647]
[1747759462961,4.01426,2479.3,2479.2,0.80647]
[1747759463163,6.031,2479.3,2479.2,0.80647]
[1747759464863,3.2078,2479.3,2479.2,0.80647]
[1747759465061,4.01423,2479.3,2479.2,0.80647]
[1747759465266,4.01423,2479.3,2479.2,1.12911674]
[1747759465468,4.01423,2479.3,2479.2,2.42231674]
[1747759467766,6.03097,2479.3,2479.2,0.32264674]
[1747759470061,7.24068,2479.3,2478.9,8.205]
[1747759470266,4.01433,2479.0,2478.9,9.5021]
[1747759471066,4.01433,2479.0,2478.9,1.2971]
[1747759471370,4.01433,2479.0,2478.7,0.80663]
[1747759471371,0.8066,2478.8,2478.7,0.80663]
[1747759472676,0.8066,2478.8,2478.7,2.50981776]
[1747759474279,2.15478,2478.9,2478.8,0.8066]
[1747759474480,2.15478,2478.9,2478.8,2.1416]